Workbook

Sheet 指南
G1: 指南 | H1: 收入
B2: 个人现金流
B3: 此工作簿包含每年、每月和每天的现金流工作表。选择最适合你的现金流类型，或者试用所有类型，帮助深入了解个人现金流。
B5: 每年现金流 | D5: 每月现金流 | F5: 每日现金流
B6: 输入各个领域的每年现金流。查看每月细分以及对比情况，最重要的是年度和月度数据中的损益。 | D6: 输入每月现金流量或者估算剩余月份的流量，以查看该年和每月的预计现金流量。 | F6: 输入预估的每日现金流量，并查看估算的月度和年度总计。使用该工作表来了解你一个月或一年中的日常消费习惯。

Sheet 每年现金流
B1: 个人现金流 | G1: 指南 | H1: 每年现金流 | J1: 每月现金流
B2: 到目前为止的总现金流： | D2: =到目前为止的年度现金流 -> ¥39,750.00 | G2: 这是年度估算值。若要查看年度金额与每月估算值，请使用此工作表。使用其他工作表添加每日项目。
B3: 收入汇总 | F3: 支出汇总 | J3: 自由支配汇总 | N3: 存款汇总
B4: 每年总计： | C4: =收入!C10 -> ¥125,000.00 | F4: 每年总计： | G4: =支出[[#Totals],[每年 ]] -> ¥49,000.00 | J4: 每年总计： | K4: =自由支配[[#Totals],[每年 ]] -> ¥13,250.00 | N4: 每年总计： | O4: =存款[[#Totals],[每年 ]] -> ¥23,000.00
B5: 此单元格中的饼图显示不同来源的收入。 | F5: 此单元格中的饼图显示各项支出。 | J5: 此单元格中的饼图显示自由支配性支出。 | N5: 此单元格中的饼图显示存款和投资。
B6: 每月总计： | C6: =收入!D10 -> ¥10,416.67 | F6: 每月总计： | G6: =支出[[#Totals],[每月 ]] -> ¥4,083.33 | J6: 每月总计： | K6: =自由支配[[#Totals],[每月 ]] -> ¥1,104.17 | N6: 每月总计： | O6: =存款!D9 -> ¥1,916.67

Sheet 每月现金流
B1: 个人现金流 | H1: 指南 | I1: 每年现金流 | J1: 每月现金流 | K1: 每日汇总
B2: 每月现金流总计： | D2: =到目前为止的月度现金流 -> ¥18,380.00 | F2: 注意：对于日常项目，请估算每月的金额/价值，并将该值放在相应的月份列中。
B3: 类型 | C3: 说明 | D3: 1 月 | E3: 2 月 | F3: 3 月 | G3: 4 月 | H3: 5 月 | I3: 6 月 | J3: 7 月 | K3: 8 月 | L3: 9 月 | M3: 10 月 | N3: 11 月 | O3: 12 月 | P3: 汇总
B4: 收入 | C4: 薪酬 | D4: ¥7,500.00 | E4: ¥7,500.00 | F4: ¥7,500.00 | G4: ¥7,500.00 | H4: ¥7,500.00 | I4: ¥7,500.00 | P4: =SUM(每月[[#This Row],[1 月]:[12 月]]) -> ¥45,000.00
B5: 收入 | C5: 佣金/奖金 | D5: ¥400.00 | E5: ¥400.00 | F5: ¥500.00 | G5: ¥200.00 | H5: ¥0.00 | I5: ¥600.00 | P5: =SUM(每月[[#This Row],[1 月]:[12 月]]) -> ¥2,100.00
B6: 收入 | C6: 其他 1 | D6: ¥2,500.00 | E6: ¥2,500.00 | F6: ¥2,500.00 | G6: ¥2,500.00 | H6: ¥2,500.00 | I6: ¥2,500.00 | P6: =SUM(每月[[#This Row],[1 月]:[12 月]]) -> ¥15,000.00
B7: 收入 | C7: 其他 2 | D7: ¥0.00 | E7: ¥0.00 | F7: ¥0.00 | G7: ¥0.00 | H7: ¥0.00 | I7: ¥0.00 | P7: =SUM(每月[[#This Row],[1 月]:[12 月]]) -> ¥0.00
B8: 收入 | C8: 其他 3 | D8: ¥0.00 | E8: ¥0.00 | F8: ¥0.00 | G8: ¥0.00 | H8: ¥0.00 | I8: ¥0.00 | P8: =SUM(每月[[#This Row],[1 月]:[12 月]]) -> ¥0.00
B9: 收入 | C9: 其他 4 | D9: ¥0.00 | E9: ¥0.00 | F9: ¥0.00 | G9: ¥0.00 | H9: ¥0.00 | I9: ¥0.00 | P9: =SUM(每月[[#This Row],[1 月]:[12 月]]) -> ¥0.00
B10: 支出 | C10: 联邦/SS/医疗保险 | D10: ¥1,250.00 | E10: ¥1,250.00 | F10: ¥1,250.00 | G10: ¥1,250.00 | H10: ¥1,250.00 | I10: ¥1,250.00 | P10: =SUM(每月[[#This Row],[1 月]:[12 月]]) -> ¥7,500.00
B11: 支出 | C11: 州所得税 | D11: ¥208.33 | E11: ¥208.33 | F11: ¥208.33 | G11: ¥208.33 | H11: ¥208.33 | I11: ¥208.33 | P11: =SUM(每月[[#This Row],[1 月]:[12 月]]) -> ¥1,250.00
B12: 支出 | C12: 车辆税/费用 | D12: ¥16.67 | E12: ¥16.67 | F12: ¥16.67 | G12: ¥16.67 | H12: ¥16.67 | I12: ¥16.67 | P12: =SUM(每月[[#This Row],[1 月]:[12 月]]) -> ¥100.00
B13: 支出 | C13: 汽车还款 | D13: ¥333.33 | E13: ¥333.33 | F13: ¥333.33 | G13: ¥333.33 | H13: ¥333.33 | I13: ¥333.33 | P13: =SUM(每月[[#This Row],[1 月]:[12 月]]) -> ¥2,000.00
B14: 支出 | C14: 按揭费用/租金 | D14: ¥1,250.00 | E14: ¥1,250.00 | F14: ¥1,250.00 | G14: ¥1,250.00 | H14: ¥1,250.00 | I14: ¥1,250.00 | P14: =SUM(每月[[#This Row],[1 月]:[12 月]]) -> ¥7,500.00
B15: 支出 | C15: 保险 | D15: ¥25.00 | E15: ¥25.00 | F15: ¥25.00 | G15: ¥25.00 | H15: ¥25.00 | I15: ¥25.00 | P15: =SUM(每月[[#This Row],[1 月]:[12 月]]) -> ¥150.00
B16: 支出 | C16: 电费 | D16: ¥100.00 | E16: ¥100.00 | F16: ¥100.00 | G16: ¥100.00 | H16: ¥100.00 | I16: ¥100.00 | P16: =SUM(每月[[#This Row],[1 月]:[12 月]]) -> ¥600.00
B17: 支出 | C17: 燃气 | D17: ¥50.00 | E17: ¥50.00 | F17: ¥50.00 | G17: ¥50.00 | H17: ¥50.00 | I17: ¥50.00 | P17: =SUM(每月[[#This Row],[1 月]:[12 月]]) -> ¥300.00
B18: 支出 | C18: 水费 | D18: ¥50.00 | E18: ¥50.00 | F18: ¥50.00 | G18: ¥50.00 | H18: ¥50.00 | I18: ¥50.00 | P18: =SUM(每月[[#This Row],[1 月]:[12 月]]) -> ¥300.00
B19: 支出 | C19: 排污费 | D19: ¥25.00 | E19: ¥25.00 | F19: ¥25.00 | G19: ¥25.00 | H19: ¥25.00 | I19: ¥25.00 | P19: =SUM(每月[[#This Row],[1 月]:[12 月]]) -> ¥150.00
B20: 支出 | C20: 垃圾费 | D20: ¥12.50 | E20: ¥12.50 | F20: ¥12.50 | G20: ¥12.50 | H20: ¥12.50 | I20: ¥12.50 | P20: =SUM(每月[[#This Row],[1 月]:[12 月]]) -> ¥75.00
B21: 支出 | C21: 电话 | D21: ¥50.00 | E21: ¥50.00 | F21: ¥50.00 | G21: ¥50.00 | H21: ¥50.00 | I21: ¥50.00 | P21: =SUM(每月[[#This Row],[1 月]:[12 月]]) -> ¥300.00
B22: 支出 | C22: 上网 | D22: ¥50.00 | E22: ¥50.00 | F22: ¥50.00 | G22: ¥50.00 | H22: ¥50.00 | I22: ¥50.00 | P22: =SUM(每月[[#This Row],[1 月]:[12 月]]) -> ¥300.00
B23: 支出 | C23: 人寿保险费/残疾保险费 | D23: ¥125.00 | E23: ¥125.00 | F23: ¥125.00 | G23: ¥125.00 | H23: ¥125.00 | I23: ¥125.00 | P23: =SUM(每月[[#This Row],[1 月]:[12 月]]) -> ¥750.00
B24: 支出 | C24: 食物 | D24: ¥400.00 | E24: ¥500.00 | F24: ¥450.00 | G24: ¥400.00 | H24: ¥450.00 | I24: ¥425.00 | P24: =SUM(每月[[#This Row],[1 月]:[12 月]]) -> ¥2,625.00
B25: 支出 | C25: 服装 | D25: ¥50.00 | E25: ¥75.00 | F25: ¥100.00 | G25: ¥75.00 | H25: ¥125.00 | I25: ¥75.00 | P25: =SUM(每月[[#This Row],[1 月]:[12 月]]) -> ¥500.00
B26: 支出 | C26: 医疗/牙齿/处方 | D26: ¥50.00 | E26: ¥10.00 | F26: ¥25.00 | G26: ¥25.00 | H26: ¥20.00 | I26: ¥70.00 | P26: =SUM(每月[[#This Row],[1 月]:[12 月]]) -> ¥200.00
B27: 支出 | C27: 公交 | D27: ¥30.00 | E27: ¥30.00 | F27: ¥30.00 | G27: ¥20.00 | H27: ¥30.00 | I27: ¥30.00 | P27: =SUM(每月[[#This Row],[1 月]:[12 月]]) -> ¥170.00
B28: 支出 | C28: 其他 2 | D28: ¥0.00 | E28: ¥0.00 | F28: ¥0.00 | G28: ¥0.00 | H28: ¥0.00 | I28: ¥0.00 | P28: =SUM(每月[[#This Row],[1 月]:[12 月]]) -> ¥0.00
B29: 支出 | C29: 其他 3 | D29: ¥0.00 | E29: ¥0.00 | F29: ¥0.00 | G29: ¥0.00 | H29: ¥0.00 | I29: ¥0.00 | P29: =SUM(每月[[#This Row],[1 月]:[12 月]]) -> ¥0.00
B30: 支出 | C30: 其他 4 | D30: ¥0.00 | E30: ¥0.00 | F30: ¥0.00 | G30: ¥0.00 | H30: ¥0.00 | I30: ¥0.00 | P30: =SUM(每月[[#This Row],[1 月]:[12 月]]) -> ¥0.00
B31: 自由支配 | C31: 就餐 | D31: ¥50.00 | E31: ¥150.00 | F31: ¥100.00 | G31: ¥50.00 | H31: ¥150.00 | I31: ¥100.00 | P31: =SUM(每月[[#This Row],[1 月]:[12 月]]) -> ¥600.00
B32: 自由支配 | C32: 礼品 | D32: ¥25.00 | E32: ¥75.00 | F32: ¥50.00 | G32: ¥25.00 | H32: ¥75.00 | I32: ¥50.00 | P32: =SUM(每月[[#This Row],[1 月]:[12 月]]) -> ¥300.00
B33: 自由支配 | C33: 旅行 | D33: ¥0.00 | E33: ¥0.00 | F33: ¥1,000.00 | G33: ¥0.00 | H33: ¥0.00 | I33: ¥1,000.00 | P33: =SUM(每月[[#This Row],[1 月]:[12 月]]) -> ¥2,000.00
B34: 自由支配 | C34: 娱乐 | D34: ¥50.00 | E34: ¥150.00 | F34: ¥100.00 | G34: ¥50.00 | H34: ¥150.00 | I34: ¥100.00 | P34: =SUM(每月[[#This Row],[1 月]:[12 月]]) -> ¥600.00
B35: 自由支配 | C35: 个人护理 | D35: ¥15.00 | E35: ¥25.00 | F35: ¥35.00 | G35: ¥15.00 | H35: ¥25.00 | I35: ¥35.00 | P35: =SUM(每月[[#This Row],[1 月]:[12 月]]) -> ¥150.00
B36: 自由支配 | C36: 购物 | D36: ¥100.00 | E36: ¥200.00 | F36: ¥150.00 | G36: ¥175.00 | H36: ¥150.00 | I36: ¥175.00 | P36: =SUM(每月[[#This Row],[1 月]:[12 月]]) -> ¥950.00
B37: 自由支配 | C37: 慈善 | D37: ¥50.00 | E37: ¥50.00 | F37: ¥50.00 | G37: ¥50.00 | H37: ¥50.00 | I37: ¥50.00 | P37: =SUM(每月[[#This Row],[1 月]:[12 月]]) -> ¥300.00
B38: 自由支配 | C38: 俱乐部/会员 | D38: ¥25.00 | E38: ¥25.00 | F38: ¥25.00 | G38: ¥25.00 | H38: ¥25.00 | I38: ¥25.00 | P38: =SUM(每月[[#This Row],[1 月]:[12 月]]) -> ¥150.00
B39: 自由支配 | C39: 住房改善 | D39: ¥400.00 | E39: ¥400.00 | F39: ¥400.00 | G39: ¥400.00 | H39: ¥400.00 | I39: ¥400.00 | P39: =SUM(每月[[#This Row],[1 月]:[12 月]]) -> ¥2,400.00
B40: 自由支配 | C40: 其他 1 | D40: ¥0.00 | E40: ¥0.00 | F40: ¥0.00 | G40: ¥0.00 | H40: ¥0.00 | I40: ¥0.00 | P40: =SUM(每月[[#This Row],[1 月]:[12 月]]) -> ¥0.00
B41: 自由支配 | C41: 其他 2 | D41: ¥0.00 | E41: ¥0.00 | F41: ¥0.00 | G41: ¥0.00 | H41: ¥0.00 | I41: ¥0.00 | P41: =SUM(每月[[#This Row],[1 月]:[12 月]]) -> ¥0.00
B42: 存款 | C42: 现金储备 | D42: ¥416.67 | E42: ¥416.67 | F42: ¥416.67 | G42: ¥416.67 | H42: ¥416.67 | I42: ¥416.67 | P42: =SUM(每月[[#This Row],[1 月]:[12 月]]) -> ¥2,500.00
B43: 存款 | C43: 401(k)/等 | D43: ¥1,000.00 | E43: ¥1,000.00 | F43: ¥1,000.00 | G43: ¥1,000.00 | H43: ¥1,000.00 | I43: ¥1,000.00 | P43: =SUM(每月[[#This Row],[1 月]:[12 月]]) -> ¥6,000.00
B44: 存款 | C44: 存款/投资帐户 | D44: ¥500.00 | E44: ¥500.00 | F44: ¥500.00 | G44: ¥500.00 | H44: ¥500.00 | I44: ¥500.00 | P44: =SUM(每月[[#This Row],[1 月]:[12 月]]) -> ¥3,000.00
B45: 存款 | C45: 其他 1 | D45: ¥0.00 | E45: ¥0.00 | F45: ¥0.00 | G45: ¥0.00 | H45: ¥0.00 | I45: ¥0.00 | P45: =SUM(每月[[#This Row],[1 月]:[12 月]]) -> ¥0.00
B46: 存款 | C46: 其他 2 | D46: ¥0.00 | E46: ¥0.00 | F46: ¥0.00 | G46: ¥0.00 | H46: ¥0.00 | I46: ¥0.00 | P46: =SUM(每月[[#This Row],[1 月]:[12 月]]) -> ¥0.00
B47: 汇总 | D47: =SUMIF(每月[类型],"收入",每月[1 月])-SUMIF(每月[类型],"<>收入",每月[1 月]) -> ¥3,692.50 | E47: =SUMIF(每月[类型],"收入",每月[2 月])-SUMIF(每月[类型],"<>收入",每月[2 月]) -> ¥3,247.50 | F47: =SUMIF(每月[类型],"收入",每月[3 月])-SUMIF(每月[类型],"<>收入",每月[3 月]) -> ¥2,522.50 | G47: =SUMIF(每月[类型],"收入",每月[4 月])-SUMIF(每月[类型],"<>收入",每月[4 月]) -> ¥3,427.50 | H47: =SUMIF(每月[类型],"收入",每月[5 月])-SUMIF(每月[类型],"<>收入",每月[5 月]) -> ¥2,887.50 | I47: =SUMIF(每月[类型],"收入",每月[6 月])-SUMIF(每月[类型],"<>收入",每月[6 月]) -> ¥2,602.50 | J47: =SUMIF(每月[类型],"收入",每月[7 月])-SUMIF(每月[类型],"<>收入",每月[7 月]) -> ¥0.00 | K47: =SUMIF(每月[类型],"收入",每月[8 月])-SUMIF(每月[类型],"<>收入",每月[8 月]) -> ¥0.00 | L47: =SUMIF(每月[类型],"收入",每月[9 月])-SUMIF(每月[类型],"<>收入",每月[9 月]) -> ¥0.00 | M47: =SUMIF(每月[类型],"收入",每月[10 月])-SUMIF(每月[类型],"<>收入",每月[10 月]) -> ¥0.00 | N47: =SUMIF(每月[类型],"收入",每月[11 月])-SUMIF(每月[类型],"<>收入",每月[11 月]) -> ¥0.00 | O47: =SUMIF(每月[类型],"收入",每月[12 月])-SUMIF(每月[类型],"<>收入",每月[12 月]) -> ¥0.00 | P47: =SUMIF(每月[类型],"收入",每月[汇总])-SUMIF(每月[类型],"<>收入",每月[汇总]) -> ¥18,380.00

Sheet 每日汇总
B1: 个人现金流 | F1: 指南 | G1: 每月现金流 | H1: 每日汇总 | I1: 收入
B2: 可用现金总额： | D2: =每日现金流 -> ¥577.84 | F2: 注意：若要将日常项目添加到表中，请估算它们的每月金额/值，并将该值放在相应的月份列中。
B3: 每日汇总
B4: 总计 | C4: 每日 | D4: 每月 | E4: 每年
B5: 收入 | C5: =SUMIF(每日[类型],$B5,每日[每日]) -> ¥342.47 | D5: =SUMIF(每日[类型],$B5,每日[每月]) -> ¥10,416.80 | E5: =SUMIF(每日[类型],$B5,每日[每年]) -> ¥125,001.55
B6: 支出 | C6: =SUMIF(每日[类型],$B6,每日[每日]) -> ¥136.06 | D6: =SUMIF(每日[类型],$B6,每日[每月]) -> ¥4,138.49 | E6: =SUMIF(每日[类型],$B6,每日[每年]) -> ¥49,661.90
B7: 自由支配 | C7: =SUMIF(每日[类型],$B7,每日[每日]) -> ¥36.29 | D7: =SUMIF(每日[类型],$B7,每日[每月]) -> ¥1,103.82 | E7: =SUMIF(每日[类型],$B7,每日[每年]) -> ¥13,245.85
B8: 存款 | C8: =SUMIF(每日[类型],$B8,每日[每日]) -> ¥63.02 | D8: =SUMIF(每日[类型],$B8,每日[每月]) -> ¥1,916.86 | E8: =SUMIF(每日[类型],$B8,每日[每年]) -> ¥23,002.30
B9: 类型 | C9: 说明 | D9: 每日 | E9: 每月 | F9: 每年
B10: 收入 | C10: 薪酬 | D10: ¥246.58 | E10: =每日[[#This Row],[每年]]/12 -> ¥7,500.14 | F10: =每日[[#This Row],[每日]]*365 -> ¥90,001.70
B11: 收入 | C11: 佣金/奖金 | D11: ¥13.70 | E11: =每日[[#This Row],[每年]]/12 -> ¥416.71 | F11: =每日[[#This Row],[每日]]*365 -> ¥5,000.50
B12: 收入 | C12: 其他 1 | D12: ¥82.19 | E12: =每日[[#This Row],[每年]]/12 -> ¥2,499.95 | F12: =每日[[#This Row],[每日]]*365 -> ¥29,999.35
B13: 收入 | C13: 其他 2 | D13: ¥0.00 | E13: =每日[[#This Row],[每年]]/12 -> ¥0.00 | F13: =每日[[#This Row],[每日]]*365 -> ¥0.00
B14: 收入 | C14: 其他 3 | D14: ¥0.00 | E14: =每日[[#This Row],[每年]]/12 -> ¥0.00 | F14: =每日[[#This Row],[每日]]*365 -> ¥0.00
B15: 收入 | C15: 其他 4 | D15: ¥0.00 | E15: =每日[[#This Row],[每年]]/12 -> ¥0.00 | F15: =每日[[#This Row],[每日]]*365 -> ¥0.00
B16: 支出 | C16: 联邦/SS/医疗保险 | D16: ¥41.10 | E16: =每日[[#This Row],[每年]]/12 -> ¥1,250.13 | F16: =每日[[#This Row],[每日]]*365 -> ¥15,001.50
B17: 支出 | C17: 州所得税 | D17: ¥6.85 | E17: =每日[[#This Row],[每年]]/12 -> ¥208.35 | F17: =每日[[#This Row],[每日]]*365 -> ¥2,500.25
B18: 支出 | C18: 车辆税/费用 | D18: ¥0.55 | E18: =每日[[#This Row],[每年]]/12 -> ¥16.73 | F18: =每日[[#This Row],[每日]]*365 -> ¥200.75
B19: 支出 | C19: 汽车还款 | D19: ¥10.96 | E19: =每日[[#This Row],[每年]]/12 -> ¥333.37 | F19: =每日[[#This Row],[每日]]*365 -> ¥4,000.40
B20: 支出 | C20: 按揭费用/租金 | D20: ¥41.10 | E20: =每日[[#This Row],[每年]]/12 -> ¥1,250.13 | F20: =每日[[#This Row],[每日]]*365 -> ¥15,001.50
B21: 支出 | C21: 保险 | D21: ¥0.68 | E21: =每日[[#This Row],[每年]]/12 -> ¥20.68 | F21: =每日[[#This Row],[每日]]*365 -> ¥248.20
B22: 支出 | C22: 电费 | D22: ¥3.29 | E22: =每日[[#This Row],[每年]]/12 -> ¥100.07 | F22: =每日[[#This Row],[每日]]*365 -> ¥1,200.85
B23: 支出 | C23: 燃气 | D23: ¥1.64 | E23: =每日[[#This Row],[每年]]/12 -> ¥49.88 | F23: =每日[[#This Row],[每日]]*365 -> ¥598.60
B24: 支出 | C24: 水费 | D24: ¥1.64 | E24: =每日[[#This Row],[每年]]/12 -> ¥49.88 | F24: =每日[[#This Row],[每日]]*365 -> ¥598.60
B25: 支出 | C25: 排污费 | D25: ¥0.82 | E25: =每日[[#This Row],[每年]]/12 -> ¥24.94 | F25: =每日[[#This Row],[每日]]*365 -> ¥299.30
B26: 支出 | C26: 垃圾费 | D26: ¥0.41 | E26: =每日[[#This Row],[每年]]/12 -> ¥12.47 | F26: =每日[[#This Row],[每日]]*365 -> ¥149.65
B27: 支出 | C27: 电话 | D27: ¥1.64 | E27: =每日[[#This Row],[每年]]/12 -> ¥49.88 | F27: =每日[[#This Row],[每日]]*365 -> ¥598.60
B28: 支出 | C28: 上网 | D28: ¥1.64 | E28: =每日[[#This Row],[每年]]/12 -> ¥49.88 | F28: =每日[[#This Row],[每日]]*365 -> ¥598.60
B29: 支出 | C29: 人寿保险费/残疾保险费 | D29: ¥4.11 | E29: =每日[[#This Row],[每年]]/12 -> ¥125.01 | F29: =每日[[#This Row],[每日]]*365 -> ¥1,500.15
B30: 支出 | C30: 食物 | D30: ¥13.70 | E30: =每日[[#This Row],[每年]]/12 -> ¥416.71 | F30: =每日[[#This Row],[每日]]*365 -> ¥5,000.50
B31: 支出 | C31: 服装 | D31: ¥3.29 | E31: =每日[[#This Row],[每年]]/12 -> ¥100.07 | F31: =每日[[#This Row],[每日]]*365 -> ¥1,200.85
B32: 支出 | C32: 医疗/牙齿/处方 | D32: ¥1.64 | E32: =每日[[#This Row],[每年]]/12 -> ¥49.88 | F32: =每日[[#This Row],[每日]]*365 -> ¥598.60
B33: 支出 | C33: 公交 | D33: ¥1.00 | E33: =每日[[#This Row],[每年]]/12 -> ¥30.42 | F33: =每日[[#This Row],[每日]]*365 -> ¥365.00
B34: 支出 | C34: 其他 2 | D34: ¥0.00 | E34: =每日[[#This Row],[每年]]/12 -> ¥0.00 | F34: =每日[[#This Row],[每日]]*365 -> ¥0.00
B35: 支出 | C35: 其他 3 | D35: ¥0.00 | E35: =每日[[#This Row],[每年]]/12 -> ¥0.00 | F35: =每日[[#This Row],[每日]]*365 -> ¥0.00
B36: 支出 | C36: 其他 4 | D36: ¥0.00 | E36: =每日[[#This Row],[每年]]/12 -> ¥0.00 | F36: =每日[[#This Row],[每日]]*365 -> ¥0.00
B37: 自由支配 | C37: 就餐 | D37: ¥3.29 | E37: =每日[[#This Row],[每年]]/12 -> ¥100.07 | F37: =每日[[#This Row],[每日]]*365 -> ¥1,200.85
B38: 自由支配 | C38: 礼品 | D38: ¥1.64 | E38: =每日[[#This Row],[每年]]/12 -> ¥49.88 | F38: =每日[[#This Row],[每日]]*365 -> ¥598.60
B39: 自由支配 | C39: 旅行 | D39: ¥6.16 | E39: =每日[[#This Row],[每年]]/12 -> ¥187.37 | F39: =每日[[#This Row],[每日]]*365 -> ¥2,248.40
B40: 自由支配 | C40: 娱乐 | D40: ¥3.29 | E40: =每日[[#This Row],[每年]]/12 -> ¥100.07 | F40: =每日[[#This Row],[每日]]*365 -> ¥1,200.85
B41: 自由支配 | C41: 个人护理 | D41: ¥0.82 | E41: =每日[[#This Row],[每年]]/12 -> ¥24.94 | F41: =每日[[#This Row],[每日]]*365 -> ¥299.30
B42: 自由支配 | C42: 购物 | D42: ¥5.48 | E42: =每日[[#This Row],[每年]]/12 -> ¥166.68 | F42: =每日[[#This Row],[每日]]*365 -> ¥2,000.20
B43: 自由支配 | C43: 慈善 | D43: ¥1.64 | E43: =每日[[#This Row],[每年]]/12 -> ¥49.88 | F43: =每日[[#This Row],[每日]]*365 -> ¥598.60
B44: 自由支配 | C44: 俱乐部/会员 | D44: ¥0.82 | E44: =每日[[#This Row],[每年]]/12 -> ¥24.94 | F44: =每日[[#This Row],[每日]]*365 -> ¥299.30
B45: 自由支配 | C45: 住房改善 | D45: ¥13.15 | E45: =每日[[#This Row],[每年]]/12 -> ¥399.98 | F45: =每日[[#This Row],[每日]]*365 -> ¥4,799.75
B46: 自由支配 | C46: 其他 1 | D46: ¥0.00 | E46: =每日[[#This Row],[每年]]/12 -> ¥0.00 | F46: =每日[[#This Row],[每日]]*365 -> ¥0.00
B47: 自由支配 | C47: 其他 2 | D47: ¥0.00 | E47: =每日[[#This Row],[每年]]/12 -> ¥0.00 | F47: =每日[[#This Row],[每日]]*365 -> ¥0.00
B48: 存款 | C48: 现金储备 | D48: ¥13.70 | E48: =每日[[#This Row],[每年]]/12 -> ¥416.71 | F48: =每日[[#This Row],[每日]]*365 -> ¥5,000.50
B49: 存款 | C49: 401(k)/等 | D49: ¥32.88 | E49: =每日[[#This Row],[每年]]/12 -> ¥1,000.10 | F49: =每日[[#This Row],[每日]]*365 -> ¥12,001.20
B50: 存款 | C50: 存款/投资帐户 | D50: ¥16.44 | E50: =每日[[#This Row],[每年]]/12 -> ¥500.05 | F50: =每日[[#This Row],[每日]]*365 -> ¥6,000.60
B51: 存款 | C51: 其他 1 | D51: ¥0.00 | E51: =每日[[#This Row],[每年]]/12 -> ¥0.00 | F51: =每日[[#This Row],[每日]]*365 -> ¥0.00
B52: 存款 | C52: 其他 2 | D52: ¥0.00 | E52: =每日[[#This Row],[每年]]/12 -> ¥0.00 | F52: =每日[[#This Row],[每日]]*365 -> ¥0.00
B53: 汇总 | D53: =SUMIF(每日[类型],"收入",每日[每日])-SUMIF(每日[类型],"<>收入",每日[每日]) -> ¥107.10 | E53: =SUMIF(每日[类型],"收入",每日[每月])-SUMIF(每日[类型],"<>收入",每日[每月]) -> ¥3,257.63 | F53: =SUMIF(每日[类型],"收入",每日[每年])-SUMIF(每日[类型],"<>收入",每日[每年]) -> ¥39,091.50

Sheet 收入
B1: 个人现金流 | F1: 指南 | G1: 每日汇总 | H1: 收入 | I1: 支出
B2: 到目前为止的总现金流： | D2: =到目前为止的年度现金流 -> ¥39,750.00 | F2: 这是年度估算值。若要查看年度金额与每月估算值，请使用此工作表 若要将日常项目添加到表中，请估算它们每年的金额/值，并将该值放在“每年”列中。
B3: 收入 | C3: 每年 | D3: 每月
B4: 薪酬 | C4: ¥90,000.00 | D4: =收入[[#This Row],[每年 ]]/12 -> ¥7,500.00
B5: 佣金/奖金 | C5: ¥5,000.00 | D5: =收入[[#This Row],[每年 ]]/12 -> ¥416.67
B6: 其他 1 | C6: ¥30,000.00 | D6: =收入[[#This Row],[每年 ]]/12 -> ¥2,500.00
B7: 其他 2 | D7: =收入[[#This Row],[每年 ]]/12 -> ¥0.00
B8: 其他 3 | D8: =收入[[#This Row],[每年 ]]/12 -> ¥0.00
B9: 其他 4 | D9: =收入[[#This Row],[每年 ]]/12 -> ¥0.00
B10: 汇总 | C10: =SUBTOTAL(109,收入[[每年 ]]) -> ¥125,000.00 | D10: =SUBTOTAL(109,收入[[每月 ]]) -> ¥10,416.67

Sheet 支出
B1: 个人现金流 | F1: 指南 | G1: 收入 | H1: 支出 | I1: 自由支配
B2: 到目前为止的总现金流： | D2: =到目前为止的年度现金流 -> ¥39,750.00 | F2: 这是年度估算值。若要查看年度金额与每月估算值，请使用此工作表 若要将日常项目添加到表中，请估算它们每年的金额/值，并将该值放在“每年”列中。
B3: 支出 | C3: 每年 | D3: 每月
B4: 联邦/SS/医疗保险 | C4: ¥15,000.00 | D4: =支出[[#This Row],[每年 ]]/12 -> ¥1,250.00
B5: 州所得税 | C5: ¥2,500.00 | D5: =支出[[#This Row],[每年 ]]/12 -> ¥208.33
B6: 车辆税/费用 | C6: ¥200.00 | D6: =支出[[#This Row],[每年 ]]/12 -> ¥16.67
B7: 汽车还款 | C7: ¥4,000.00 | D7: =支出[[#This Row],[每年 ]]/12 -> ¥333.33
B8: 按揭费用/租金 | C8: ¥15,000.00 | D8: =支出[[#This Row],[每年 ]]/12 -> ¥1,250.00
B9: 保险 | C9: ¥250.00 | D9: =支出[[#This Row],[每年 ]]/12 -> ¥20.83
B10: 电费 | C10: ¥1,200.00 | D10: =支出[[#This Row],[每年 ]]/12 -> ¥100.00
B11: 燃气 | C11: ¥600.00 | D11: =支出[[#This Row],[每年 ]]/12 -> ¥50.00
B12: 水费/排污费 | C12: ¥600.00 | D12: =支出[[#This Row],[每年 ]]/12 -> ¥50.00
B13: 垃圾费 | C13: ¥150.00 | D13: =支出[[#This Row],[每年 ]]/12 -> ¥12.50
B14: 电话 | C14: ¥600.00 | D14: =支出[[#This Row],[每年 ]]/12 -> ¥50.00
B15: 上网 | C15: ¥600.00 | D15: =支出[[#This Row],[每年 ]]/12 -> ¥50.00
B16: 人寿保险费/残疾保险费 | C16: ¥1,500.00 | D16: =支出[[#This Row],[每年 ]]/12 -> ¥125.00
B17: 食物 | C17: ¥5,000.00 | D17: =支出[[#This Row],[每年 ]]/12 -> ¥416.67
B18: 服装 | C18: ¥1,200.00 | D18: =支出[[#This Row],[每年 ]]/12 -> ¥100.00
B19: 医疗/牙齿/处方 | C19: ¥600.00 | D19: =支出[[#This Row],[每年 ]]/12 -> ¥50.00
B20: 其他 1 | D20: =支出[[#This Row],[每年 ]]/12 -> ¥0.00
B21: 其他 2 | D21: =支出[[#This Row],[每年 ]]/12 -> ¥0.00
B22: 汇总 | C22: =SUBTOTAL(109,支出[[每年 ]]) -> ¥49,000.00 | D22: =SUBTOTAL(109,支出[[每月 ]]) -> ¥4,083.33

Sheet 自由支配
B1: 个人现金流 | F1: 指南 | G1: 支出 | H1: 自由支配 | I1: 存款
B2: 到目前为止的总现金流： | D2: =到目前为止的年度现金流 -> ¥39,750.00 | F2: 这是年度估算值。若要查看年度金额与每月估算值，请使用此工作表 若要将日常项目添加到表中，请估算它们每年的金额/值，并将该值放在“每年”列中。
B3: 自由支配性支出 | C3: 每年 | D3: 每月
B4: 就餐 | C4: ¥1,200.00 | D4: =自由支配[[#This Row],[每年 ]]/12 -> ¥100.00
B5: 礼品 | C5: ¥600.00 | D5: =自由支配[[#This Row],[每年 ]]/12 -> ¥50.00
B6: 旅行 | C6: ¥2,250.00 | D6: =自由支配[[#This Row],[每年 ]]/12 -> ¥187.50
B7: 娱乐 | C7: ¥1,200.00 | D7: =自由支配[[#This Row],[每年 ]]/12 -> ¥100.00
B8: 个人护理 | C8: ¥300.00 | D8: =自由支配[[#This Row],[每年 ]]/12 -> ¥25.00
B9: 购物 | C9: ¥2,000.00 | D9: =自由支配[[#This Row],[每年 ]]/12 -> ¥166.67
B10: 慈善 | C10: ¥600.00 | D10: =自由支配[[#This Row],[每年 ]]/12 -> ¥50.00
B11: 俱乐部/会员 | C11: ¥300.00 | D11: =自由支配[[#This Row],[每年 ]]/12 -> ¥25.00
B12: 住房改善 | C12: ¥4,800.00 | D12: =自由支配[[#This Row],[每年 ]]/12 -> ¥400.00
B13: 其他 1 | D13: =自由支配[[#This Row],[每年 ]]/12 -> ¥0.00
B14: 其他 2 | D14: =自由支配[[#This Row],[每年 ]]/12 -> ¥0.00
B15: 汇总 | C15: =SUBTOTAL(109,自由支配[[每年 ]]) -> ¥13,250.00 | D15: =SUBTOTAL(109,自由支配[[每月 ]]) -> ¥1,104.17

Sheet 存款
B1: 个人现金流 | F1: 指南 | G1: 自由支配 | H1: 存款
B2: 到目前为止的总现金流： | D2: =到目前为止的年度现金流 -> ¥39,750.00 | F2: 这是年度估算值。若要查看年度金额与每月估算值，请使用此工作表 若要将日常项目添加到表中，请估算它们每年的金额/值，并将该值放在“每年”列中。
B3: 存款 | C3: 每年 | D3: 每月
B4: 现金储备 | C4: ¥5,000.00 | D4: =存款[[#This Row],[每年 ]]/12 -> ¥416.67
B5: 401(k)/等 | C5: ¥12,000.00 | D5: =存款[[#This Row],[每年 ]]/12 -> ¥1,000.00
B6: 存款/投资 | C6: ¥6,000.00 | D6: =存款[[#This Row],[每年 ]]/12 -> ¥500.00
B7: 其他 1 | D7: =存款[[#This Row],[每年 ]]/12 -> ¥0.00
B8: 其他 2 | D8: =存款[[#This Row],[每年 ]]/12 -> ¥0.00
B9: 汇总 | C9: =SUBTOTAL(109,存款[[每年 ]]) -> ¥23,000.00 | D9: =SUBTOTAL(109,存款[[每月 ]]) -> ¥1,916.67
